[Event "35th European Club Cup 2019"]
[Site "Ulcinj"]
[Date "2019.11.15"]
[Round "6.19"]
[White "Bauer, Christian"]
[Black "Pruijssers, Roeland"]
[Result "1-0"]
[ECO "A85"]
[WhiteElo "2624"]
[BlackElo "2557"]
[Annotator "ChessBase"]
[PlyCount "51"]
[EventDate "2019.11.10"]
[EventType "team-tourn"]
[EventCountry "MNE"]
[SourceTitle "playchess.com"]
[Source "ChessBase"]
[SourceQuality "1"]
[WhiteTeam "Zurich SG"]
[BlackTeam "Echiquier Mosan"]
[TimeControl "40/5400+30:1800+30"]

1. d4 f5 2. c4 Nf6 3. Nc3 d6 4. Nf3 g6 5. Bf4 Bg7 6. e3 {[%emt 0:00:59]} e6 {[%emt 0:02:59]} 7. h3 {[%emt 0:08:08]} Qe7 {[%emt 0:02:46]} 8. Be2 {[%emt 0:06:34]} Nc6 {[%emt 0:05:34]} 9. Bh2 {[%emt 0:02:10]} Nd8 {[%emt 0:02:04]} 10. Rc1 {[%emt 0:05:02]} Nf7 {[%emt 0:00:37]} 11. c5 {[%emt 0:00:33]} O-O {[%emt 0:01:54]} 12. O-O {[%emt 0:11:10]} e5 {[%emt 0:23:01]} 13. Qb3 {[%emt 0:05:00]} Be6 {[%emt 0:13:32]} 14. Qxb7 {[%emt 0:07:37]} Rab8 {[%emt 0:02:52]} 15. cxd6 {[%emt 0:09:42]} Nxd6 {[%emt 0:00:15]} 16. Qxa7 {[%emt 0:03:20]} Ra8 {[%emt 0:05:31]} 17. Qc5 {[%emt 0:02:19]} Nd7 {[%emt 0:00:20]} 18. Qc6 {[%emt 0:06:02]} Ra5 {[%emt 0:05:22]} 19. Qxc7 {[%emt 0:04:17]} Rfa8 {[%emt 0:00:20]} 20. Nxe5 {[%emt 0:01:18]} Bxe5 {[%emt 0:03:20]} 21. Bxe5 {[%emt 0:05:55]} Ne8 {[%emt 0:01:25]} 22. Qc6 {[%emt 0:00:53]} Nxe5 {[%emt 0:00:33]} 23. dxe5 {[%emt 0:00:05]} Rc8 {[%emt 0:00:07]} 24. Qb6 {[%emt 0:02:48]} Rxe5 {[%emt 0:00:09]} 25. Bf3 {[%emt 0:02:37]} Nd6 {[%emt 0:00:48]} 26. Qd4 {[%emt 0:01:06]} 1-0

[Event "35th European Club Cup 2019"]
[Site "Ulcinj"]
[Date "2019.11.15"]
[Round "6.19"]
[White "Petenyi, Tamas"]
[Black "Antoniewski, Rafal"]
[Result "1/2-1/2"]
[ECO "B00"]
[WhiteElo "2420"]
[BlackElo "2484"]
[Annotator "ChessBase"]
[PlyCount "44"]
[EventDate "2019.11.10"]
[EventType "team-tourn"]
[EventCountry "MNE"]
[SourceTitle "playchess.com"]
[Source "ChessBase"]
[SourceQuality "1"]
[WhiteTeam "Dunajska Streda"]
[BlackTeam "Inbest Dunajov"]
[TimeControl "40/5400+30:1800+30"]

1. e4 {[%emt 0:00:10]} Nc6 {[%emt 0:00:04]} 2. Nf3 {[%emt 0:00:11]} d6 {[%emt 0:00:08]} 3. d4 {[%emt 0:00:43]} Nf6 {[%emt 0:00:06]} 4. Nc3 {[%emt 0:00:33]} g6 {[%emt 0:00:08]} 5. Bb5 {[%emt 0:04:22]} a6 {[%emt 0:01:34]} 6. Bxc6+ {[%emt 0:00:33]} bxc6 {[%emt 0:00:08]} 7. h3 {[%emt 0:03:31]} Bg7 {[%emt 0:00:50]} 8. Be3 {[%emt 0:01:14]} Rb8 {[%emt 0:01:50]} 9. Qc1 {[%emt 0:06:44]} h6 {[%emt 0:19:24]} 10. O-O {[%emt 0:02:07]} Be6 {[%emt 0:01:27]} 11. Re1 {[%emt 0:10:40]} Qc8 {[%emt 0:00:22]} 12. Qd2 {[%emt 0:15:09]} Rxb2 {[%emt 0:23:37]} 13. d5 {[%emt 0:12:46]} Bxh3 {[%emt 0:00:13]} 14. gxh3 {[%emt 0:02:04]} Qxh3 {[%emt 0:00:06]} 15. Nh2 {[%emt 0:03:01]} Ng4 {[%emt 0:03:49]} 16. Nxg4 {[%emt 0:05:08]} Qxg4+ {[%emt 0:00:06]} 17. Kf1 {[%emt 0:00:07]} O-O {[%emt 0:00:25]} 18. dxc6 {[%emt 0:04:27]} f5 {[%emt 0:00:43]} 19. Nd5 {[%emt 0:07:41]} Qh3+ {[%emt 0:18:24]} 20. Kg1 {[%emt 0:02:09]} Qg4+ {[%emt 0:13:17]} 21. Kf1 {[%emt 0:00:04]} Qh3+ {[%emt 0:04:51]} 22. Kg1 {[%emt 0:00:01]} Qg4+ {[%emt 0:00:33]} 1/2-1/2

[Event "35th European Club Cup 2019"]
[Site "Ulcinj"]
[Date "2019.11.15"]
[Round "6.20"]
[White "Burg, Twan"]
[Black "Pelletier, Yannick"]
[Result "1/2-1/2"]
[ECO "E38"]
[WhiteElo "2536"]
[BlackElo "2561"]
[Annotator "ChessBase"]
[PlyCount "130"]
[EventDate "2019.11.10"]
[EventType "team-tourn"]
[EventCountry "MNE"]
[SourceTitle "playchess.com"]
[Source "ChessBase"]
[SourceQuality "1"]
[WhiteTeam "Echiquier Mosan"]
[BlackTeam "Zurich SG"]
[TimeControl "40/5400+30:1800+30"]

1. d4 {[%emt 0:00:00]} Nf6 {[%emt 0:03:26]} 2. c4 {[%emt 0:00:00]} e6 {[%emt 0:00:05]} 3. Nc3 {[%emt 0:00:00]} Bb4 {[%emt 0:00:24]} 4. Qc2 {[%emt 0:00:00]} c5 {[%emt 0:06:10]} 5. dxc5 {[%emt 0:00:10]} Na6 {[%emt 0:04:17]} 6. g3 {[%emt 0:06:20]} Nxc5 {[%emt 0:19:42]} 7. Bg2 {[%emt 0:00:08]} O-O {[%emt 0:00:28]} 8. Nf3 {[%emt 0:00:15]} b6 {[%emt 0:02:52]} 9. O-O {[%emt 0:00:34]} Bb7 {[%emt 0:00:15]} 10. Nb5 {[%emt 0:01:04]} Be4 {[%emt 0:00:17]} 11. Qd1 {[%emt 0:00:32]} Nb7 {[%emt 0:00:25]} 12. Bf4 {[%emt 0:08:48]} a6 {[%emt 0:20:07]} 13. Nd6 {[%emt 0:01:40]} Bxd6 {[%emt 0:00:27]} 14. Bxd6 {[%emt 0:00:08]} Nxd6 {[%emt 0:00:10]} 15. Qxd6 {[%emt 0:00:07]} Qb8 {[%emt 0:03:27]} 16. Rfd1 {[%emt 0:05:49]} Qb7 {[%emt 0:00:38]} 17. Bf1 {[%emt 0:03:11]} Bxf3 {[%emt 0:03:55]} 18. exf3 {[%emt 0:00:09]} Rac8 {[%emt 0:00:16]} 19. f4 {[%emt 0:02:27]} a5 {[%emt 0:00:13]} 20. b3 {[%emt 0:07:27]} h6 {[%emt 0:06:19]} 21. h3 {[%emt 0:03:58]} Rc6 {[%emt 0:02:07]} 22. Bg2 {[%emt 0:03:41]} Rxd6 {[%emt 0:00:06]} 23. Bxb7 {[%emt 0:00:03]} Rxd1+ {[%emt 0:00:05]} 24. Rxd1 {[%emt 0:00:04]} Rb8 {[%emt 0:00:08]} 25. Bf3 {[%emt 0:00:16]} Kf8 {[%emt 0:01:31]} 26. g4 {[%emt 0:00:45]} g5 {[%emt 0:04:42]} 27. fxg5 {[%emt 0:03:10]} hxg5 {[%emt 0:00:02]} 28. Kg2 {[%emt 0:00:21]} Ke7 {[%emt 0:00:45]} 29. Kg3 {[%emt 0:00:23]} b5 {[%emt 0:06:20]} 30. Rc1 {[%emt 0:09:14]} bxc4 {[%emt 0:02:41]} 31. Rxc4 {[%emt 0:00:26]} Rb4 {[%emt 0:00:14]} 32. Rc5 {[%emt 0:04:04]} a4 {[%emt 0:00:44]} 33. bxa4 {[%emt 0:00:07]} d5 {[%emt 0:03:32]} 34. Rc7+ {[%emt 0:02:12]} Kf8 {[%emt 0:00:02]} 35. a5 {[%emt 0:03:06]} Ra4 {[%emt 0:00:16]} 36. h4 {[%emt 0:08:45]} gxh4+ {[%emt 0:02:22]} 37. Kxh4 {[%emt 0:00:05]} Rxa5 {[%emt 0:03:38]} 38. g5 {[%emt 0:00:32]} Ne8 {[%emt 0:01:33]} 39. Rc2 {[%emt 0:01:19]} Ra4+ {[%emt 0:01:12]} 40. Kh3 {[%emt 0:00:00]} Nd6 {[%emt 0:00:00]} 41. Bh5 {[%emt 0:08:16]} Ne4 {[%emt 0:14:45]} 42. f4 {[%emt 0:00:55]} Ra3+ {[%emt 0:03:23]} 43. Kh4 {[%emt 0:03:11]} Rc3 {[%emt 0:03:07]} 44. Rb2 {[%emt 0:01:04]} Rc1 {[%emt 0:01:52]} 45. Rb8+ {[%emt 0:13:33]} Kg7 {[%emt 0:00:11]} 46. Rb7 {[%emt 0:00:05]} Rh1+ {[%emt 0:00:16]} 47. Kg4 {[%emt 0:00:05]} Nf2+ {[%emt 0:01:27]} 48. Kf3 {[%emt 0:00:16]} Rxh5 {[%emt 0:00:03]} 49. Kxf2 {[%emt 0:00:03]} Rh2+ {[%emt 0:03:24]} 50. Kg3 {[%emt 0:04:46]} Rxa2 {[%emt 0:00:06]} 51. f5 {[%emt 0:00:37]} exf5 {[%emt 0:00:45]} 52. Rd7 {[%emt 0:00:07]} Kg6 {[%emt 0:08:59]} 53. Rxd5 {[%emt 0:00:14]} Kxg5 {[%emt 0:00:06]} 54. Rd4 {[%emt 0:00:16]} Ra3+ {[%emt 0:00:09]} 55. Kf2 {[%emt 0:00:07]} f4 {[%emt 0:00:16]} 56. Rd8 {[%emt 0:01:10]} Ra2+ {[%emt 0:00:07]} 57. Kf3 {[%emt 0:00:07]} Ra3+ {[%emt 0:00:03]} 58. Kf2 {[%emt 0:00:04]} Kf5 {[%emt 0:00:11]} 59. Rf8 {[%emt 0:00:36]} Ra2+ {[%emt 0:00:05]} 60. Kf3 {[%emt 0:00:01]} Ra3+ {[%emt 0:00:12]} 61. Kf2 {[%emt 0:00:10]} f6 {[%emt 0:00:11]} 62. Rf7 {[%emt 0:04:14]} Ra2+ {[%emt 0:00:05]} 63. Kf3 {[%emt 0:00:07]} Ra3+ {[%emt 0:00:04]} 64. Kf2 {[%emt 0:00:03]} Rd3 {[%emt 0:01:07]} 65. Rf8 {[%emt 0:00:31]} Rd2+ 1/2-1/2

[Event "35th European Club Cup 2019"]
[Site "Ulcinj"]
[Date "2019.11.15"]
[Round "6.20"]
[White "Jurcik, Martin"]
[Black "Bagi, Mate"]
[Result "1/2-1/2"]
[ECO "A31"]
[WhiteElo "2358"]
[BlackElo "2470"]
[Annotator "ChessBase"]
[PlyCount "63"]
[EventDate "2019.11.10"]
[EventType "team-tourn"]
[EventCountry "MNE"]
[SourceTitle "playchess.com"]
[Source "ChessBase"]
[SourceQuality "1"]
[WhiteTeam "Inbest Dunajov"]
[BlackTeam "Dunajska Streda"]
[TimeControl "40/5400+30:1800+30"]

1. Nf3 {[%emt 0:00:00]} Nf6 {[%emt 0:00:00]} 2. c4 {[%emt 0:00:11]} c5 {[%emt 0:00:11]} 3. d4 {[%emt 0:01:09]} g6 {[%emt 0:07:45]} 4. Nc3 {[%emt 0:04:20]} cxd4 {[%emt 0:05:54]} 5. Nxd4 {[%emt 0:00:20]} Bg7 {[%emt 0:00:48]} 6. e4 {[%emt 0:01:32]} d6 {[%emt 0:01:59]} 7. Be2 {[%emt 0:00:59]} Nc6 {[%emt 0:00:47]} 8. Be3 {[%emt 0:02:16]} O-O {[%emt 0:00:36]} 9. Qd2 {[%emt 0:02:50]} Bd7 {[%emt 0:01:34]} 10. f3 {[%emt 0:06:21]} a5 {[%emt 0:05:37]} 11. O-O {[%emt 0:07:35]} Nxd4 {[%emt 0:02:55]} 12. Bxd4 {[%emt 0:00:29]} Bc6 {[%emt 0:02:46]} 13. Rfc1 {[%emt 0:03:24]} Nd7 {[%emt 0:01:56]} 14. Be3 {[%emt 0:00:22]} Nc5 {[%emt 0:02:47]} 15. b3 {[%emt 0:05:29]} e6 {[%emt 0:03:38]} 16. Rab1 {[%emt 0:23:28]} Be5 {[%emt 0:02:45]} 17. Bg5 {[%emt 0:01:49]} f6 {[%emt 0:15:46]} 18. Be3 {[%emt 0:00:42]} f5 {[%emt 0:01:05]} 19. exf5 {[%emt 0:00:39]} Rxf5 {[%emt 0:01:29]} 20. f4 {[%emt 0:01:12]} Bg7 {[%emt 0:04:07]} 21. Bg4 {[%emt 0:00:23]} Rf8 {[%emt 0:03:58]} 22. Bxc5 {[%emt 0:14:38]} dxc5 {[%emt 0:00:13]} 23. Bxe6+ {[%emt 0:00:09]} Kh8 {[%emt 0:00:09]} 24. Qxd8 {[%emt 0:00:09]} Rc8 25. Qxf8+ Rxf8 {[%emt 0:00:55]} 26. Nd5 {[%emt 0:00:34]} Bd4+ {[%emt 0:08:27]} 27. Kh1 {[%emt 0:00:02]} b5 {[%emt 0:01:14]} 28. Rf1 {[%emt 0:03:54]} b4 {[%emt 0:02:19]} 29. Rbe1 {[%emt 0:01:27]} a4 {[%emt 0:01:44]} 30. Ne7 {[%emt 0:05:53]} Be8 {[%emt 0:00:49]} 31. bxa4 {[%emt 0:01:13]} Bxa4 {[%emt 0:01:46]} 32. Bd5 {[%emt 0:00:42]} 1/2-1/2

[Event "35th European Club Cup 2019"]
[Site "Ulcinj"]
[Date "2019.11.15"]
[Round "6.21"]
[White "Brunner, Lucas"]
[Black "Beerdsen, Thomas"]
[Result "1/2-1/2"]
[ECO "D33"]
[WhiteElo "2441"]
[BlackElo "2468"]
[Annotator "ChessBase"]
[PlyCount "60"]
[EventDate "2019.11.10"]
[EventType "team-tourn"]
[EventCountry "MNE"]
[SourceTitle "playchess.com"]
[Source "ChessBase"]
[SourceQuality "1"]
[WhiteTeam "Zurich SG"]
[BlackTeam "Echiquier Mosan"]
[TimeControl "40/5400+30:1800+30"]

1. Nf3 {[%emt 0:00:00]} c5 {[%emt 0:00:00]} 2. c4 {[%emt 0:00:00]} Nf6 {[%emt 0:00:03]} 3. Nc3 {[%emt 0:00:00]} Nc6 {[%emt 0:00:15]} 4. g3 {[%emt 0:00:05]} d5 {[%emt 0:00:13]} 5. d4 {[%emt 0:00:14]} e6 {[%emt 0:05:59]} 6. cxd5 {[%emt 0:00:30]} exd5 {[%emt 0:00:30]} 7. Bg2 cxd4 {[%emt 0:01:44]} 8. Nxd4 {[%emt 0:00:22]} Bc5 {[%emt 0:00:21]} 9. Nxc6 {[%emt 0:04:29]} bxc6 {[%emt 0:00:06]} 10. O-O {[%emt 0:01:26]} O-O {[%emt 0:01:36]} 11. Qc2 {[%emt 0:11:10]} Bd6 {[%emt 0:07:12]} 12. e4 {[%emt 0:12:16]} Rb8 {[%emt 0:12:59]} 13. exd5 {[%emt 0:09:12]} Nxd5 {[%emt 0:00:30]} 14. Nxd5 {[%emt 0:06:25]} cxd5 {[%emt 0:05:42]} 15. Rd1 {[%emt 0:00:15]} Qf6 {[%emt 0:06:18]} 16. Rxd5 {[%emt 0:01:33]} Be5 {[%emt 0:01:19]} 17. Qc5 {[%emt 0:08:07]} Bxb2 {[%emt 0:03:54]} 18. Bxb2 {[%emt 0:00:19]} Qxb2 {[%emt 0:03:05]} 19. Qd4 {[%emt 0:03:41]} Qxd4 {[%emt 0:09:25]} 20. Rxd4 {[%emt 0:01:05]} Rb5 {[%emt 0:01:32]} 21. Bd5 {[%emt 0:06:51]} Rc5 {[%emt 0:12:32]} 22. Rad1 {[%emt 0:03:16]} g6 {[%emt 0:01:56]} 23. h4 {[%emt 0:07:13]} Kg7 {[%emt 0:02:35]} 24. Bb3 {[%emt 0:09:29]} Rc7 {[%emt 0:00:24]} 25. f3 {[%emt 0:00:30]} Re8 {[%emt 0:01:20]} 26. Kf2 {[%emt 0:00:39]} Rce7 {[%emt 0:00:30]} 27. R1d2 {[%emt 0:00:20]} Be6 {[%emt 0:01:58]} 28. Re2 {[%emt 0:04:11]} Bxb3 {[%emt 0:00:21]} 29. Rxe7 {[%emt 0:00:30]} Rxe7 {[%emt 0:00:03]} 30. axb3 {[%emt 0:00:01]} Rb7 {[%emt 0:00:06]} 1/2-1/2

[Event "35th European Club Cup 2019"]
[Site "Ulcinj"]
[Date "2019.11.15"]
[Round "6.21"]
[White "Varga, Zoltan"]
[Black "Lisko, Frantisek"]
[Result "1-0"]
[ECO "B10"]
[WhiteElo "2424"]
[BlackElo "2274"]
[Annotator "NA"]
[PlyCount "59"]
[EventDate "2019.11.10"]
[EventType "team-tourn"]
[EventCountry "MNE"]
[SourceTitle "playchess.com"]
[Source "ChessBase"]
[SourceQuality "1"]
[WhiteTeam "Dunajska Streda"]
[BlackTeam "Inbest Dunajov"]
[TimeControl "40/5400+30:1800+30"]

1. e4 {[%emt 0:00:00]} c6 {[%emt 0:00:00]} 2. c4 {[%emt 0:00:04]} e6 {[%emt 0:00:07]} 3. Nc3 {[%emt 0:00:30]} d5 4. cxd5 {[%emt 0:00:56]} exd5 {[%emt 0:00:00]} 5. exd5 {[%emt 0:00:04]} cxd5 {[%emt 0:00:12]} 6. Nf3 {[%emt 0:00:11]} Nf6 {[%emt 0:00:21]} 7. Bb5+ Nc6 {[%emt 0:00:10]} 8. O-O {[%emt 0:05:14]} Bd6 {[%emt 0:00:20]} 9. Re1+ {[%emt 0:04:58]} Be6 {[%emt 0:00:31]} 10. d4 {[%emt 0:00:19]} h6 11. Ne5 O-O {[%emt 0:18:29]} 12. Bxc6 {[%emt 0:01:25]} bxc6 {[%emt 0:00:27]} 13. Nxc6 {[%emt 0:00:39]} Qb6 {[%emt 0:07:44]} 14. Ne5 {[%emt 0:00:29]} Rac8 {[%emt 0:03:20]} 15. Qd3 {[%emt 0:04:59]} Bb4 {[%emt 0:09:43]} 16. Bd2 Ne4 {[%emt 0:01:49]} 17. Na4 {[%emt 0:17:03]} Qa5 {[%emt 0:01:10]} 18. Bxb4 {[%emt 0:00:04]} Qxb4 {[%emt 0:00:11]} 19. b3 {[%emt 0:00:01]} Rc7 {[%emt 0:03:31]} 20. f3 {[%emt 0:07:13]} Nd6 {[%emt 0:03:39]} 21. Nc5 Bf5 {[%emt 0:04:26]} 22. Qe3 {[%emt 0:01:35]} Bc8 {[%emt 0:03:12]} 23. Ned3 {[%emt 0:00:18]} Qc3 {[%emt 0:07:17]} 24. Rac1 {[%emt 0:03:15]} Qa5 {[%emt 0:00:18]} 25. Qe5 {[%emt 0:00:05]} Rd8 {[%emt 0:00:20]} 26. a4 {[%emt 0:08:29]} Ne8 {[%emt 0:08:47]} 27. Nf4 Nf6 28. b4 {[%emt 0:01:41]} Qb6 {[%emt 0:00:52]} 29. a5 {[%emt 0:08:42]} Qb8 30. Na6 1-0

[Event "35th European Club Cup 2019"]
[Site "Ulcinj"]
[Date "2019.11.15"]
[Round "6.22"]
[White "Umudova, Nargiz"]
[Black "Vogt, Lothar"]
[Result "1/2-1/2"]
[ECO "B40"]
[WhiteElo "2270"]
[BlackElo "2351"]
[Annotator "NA"]
[PlyCount "60"]
[EventDate "2019.11.10"]
[EventType "team-tourn"]
[EventCountry "MNE"]
[SourceTitle "playchess.com"]
[Source "ChessBase"]
[SourceQuality "1"]
[WhiteTeam "Echiquier Mosan"]
[BlackTeam "Zurich SG"]
[TimeControl "40/5400+30:1800+30"]

1. e4 {[%emt 0:00:00]} c5 {[%emt 0:00:00]} 2. Nf3 {[%emt 0:00:00]} e6 {[%emt 0:00:00]} 3. d4 {[%emt 0:00:41]} cxd4 {[%emt 0:00:00]} 4. Nxd4 {[%emt 0:00:03]} Nf6 {[%emt 0:00:00]} 5. Bd3 {[%emt 0:00:22]} d6 {[%emt 0:00:51]} 6. c4 {[%emt 0:03:07]} Be7 {[%emt 0:01:03]} 7. Nc3 {[%emt 0:01:15]} O-O {[%emt 0:00:46]} 8. O-O {[%emt 0:00:12]} b6 {[%emt 0:01:21]} 9. Be3 {[%emt 0:07:47]} Bb7 {[%emt 0:00:10]} 10. Qe2 Nbd7 11. f3 {[%emt 0:07:26]} Qc7 {[%emt 0:04:31]} 12. Rac1 {[%emt 0:04:33]} a6 {[%emt 0:02:11]} 13. Qf2 {[%emt 0:05:17]} Rfe8 {[%emt 0:04:07]} 14. b4 {[%emt 0:02:26]} Rac8 {[%emt 0:13:49]} 15. Na4 {[%emt 0:01:43]} Qb8 {[%emt 0:03:49]} 16. Nb3 {[%emt 0:04:08]} d5 {[%emt 0:00:46]} 17. exd5 {[%emt 0:19:55]} exd5 {[%emt 0:04:05]} 18. c5 {[%emt 0:00:30]} bxc5 19. bxc5 Ne5 {[%emt 0:09:49]} 20. Be2 {[%emt 0:07:56]} Nc6 {[%emt 0:06:45]} 21. Nd4 {[%emt 0:02:13]} Bd8 22. Rb1 {[%emt 0:12:38]} Qe5 {[%emt 0:22:20]} 23. Rxb7 {[%emt 0:02:02]} Qxe3 24. Qxe3 {[%emt 0:02:22]} Rxe3 {[%emt 0:00:07]} 25. Nxc6 {[%emt 0:02:32]} Rxc6 {[%emt 0:05:40]} 26. Rb8 Re8 {[%emt 0:02:38]} 27. Ra8 {[%emt 0:02:08]} Be7 28. Rxe8+ {[%emt 0:03:32]} Nxe8 {[%emt 0:00:32]} 29. Rb1 {[%emt 0:01:46]} f6 {[%emt 0:04:03]} 30. Kf1 {[%emt 0:00:51]} Rc7 {[%emt 0:05:11]} 1/2-1/2

[Event "35th European Club Cup 2019"]
[Site "Ulcinj"]
[Date "2019.11.15"]
[Round "6.22"]
[White "Kantorik, Marian"]
[Black "Csonka, Attila Istvan"]
[Result "1/2-1/2"]
[ECO "D07"]
[WhiteElo "2181"]
[BlackElo "2348"]
[Annotator "NA"]
[PlyCount "61"]
[EventDate "2019.11.10"]
[EventType "team-tourn"]
[EventCountry "MNE"]
[SourceTitle "playchess.com"]
[Source "ChessBase"]
[SourceQuality "1"]
[WhiteTeam "Inbest Dunajov"]
[BlackTeam "Dunajska Streda"]
[TimeControl "40/5400+30:1800+30"]

1. d4 {[%emt 0:00:00]} d5 {[%emt 0:00:00]} 2. c4 {[%emt 0:00:05]} Nc6 {[%emt 0:00:00]} 3. cxd5 {[%emt 0:01:12]} Qxd5 {[%emt 0:00:00]} 4. Nf3 {[%emt 0:00:44]} e5 {[%emt 0:00:39]} 5. Nc3 {[%emt 0:00:06]} Bb4 {[%emt 0:00:18]} 6. e3 {[%emt 0:00:04]} Nf6 {[%emt 0:09:58]} 7. Bd2 {[%emt 0:09:48]} Bxc3 {[%emt 0:02:33]} 8. Bxc3 {[%emt 0:04:14]} Ne4 {[%emt 0:06:16]} 9. Qb3 {[%emt 0:08:17]} Be6 {[%emt 0:03:54]} 10. Qxd5 {[%emt 0:06:06]} Bxd5 {[%emt 0:00:14]} 11. Bb5 {[%emt 0:01:15]} exd4 {[%emt 0:02:38]} 12. Bxd4 {[%emt 0:04:50]} f6 {[%emt 0:02:32]} 13. O-O {[%emt 0:04:25]} O-O-O {[%emt 0:02:44]} 14. Bxc6 {[%emt 0:05:18]} Bxc6 {[%emt 0:00:07]} 15. Rfd1 {[%emt 0:00:37]} Rd5 {[%emt 0:02:52]} 16. Rdc1 {[%emt 0:05:54]} a6 {[%emt 0:03:09]} 17. b3 {[%emt 0:01:42]} Rhd8 {[%emt 0:13:14]} 18. Rc2 {[%emt 0:08:51]} Ng5 {[%emt 0:15:40]} 19. Nxg5 {[%emt 0:10:32]} Rxg5 {[%emt 0:01:16]} 20. f4 {[%emt 0:00:06]} Rgd5 {[%emt 0:01:08]} 21. Rac1 {[%emt 0:00:20]} R5d7 {[%emt 0:02:09]} 22. Kf2 {[%emt 0:01:07]} Be4 {[%emt 0:01:38]} 23. Rc3 {[%emt 0:01:19]} Kb8 {[%emt 0:01:31]} 24. b4 {[%emt 0:02:01]} Bd5 {[%emt 0:04:00]} 25. a3 {[%emt 0:00:48]} Bc6 {[%emt 0:01:17]} 26. R1c2 {[%emt 0:04:02]} Be4 {[%emt 0:02:50]} 27. Rc1 {[%emt 0:00:16]} Bc6 {[%emt 0:00:08]} 28. R1c2 {[%emt 0:00:16]} Be4 {[%emt 0:00:51]} 29. Rc1 {[%emt 0:00:32]} Bc6 {[%emt 0:00:07]} 30. R1c2 {[%emt 0:00:12]} Be4 {[%emt 0:00:05]} 31. Rc1 1/2-1/2

[Event "35th European Club Cup 2019"]
[Site "Ulcinj"]
[Date "2019.11.15"]
[Round "6.23"]
[White "Meszaros, Michal"]
[Black "Hanko, Pavol"]
[Result "1-0"]
[ECO "B83"]
[WhiteElo "2355"]
[BlackElo "2114"]
[Annotator "NA RC"]
[PlyCount "83"]
[EventDate "2019.11.10"]
[EventType "team-tourn"]
[EventCountry "MNE"]
[SourceTitle "playchess.com"]
[Source "ChessBase"]
[SourceQuality "1"]
[WhiteTeam "Dunajska Streda"]
[BlackTeam "Inbest Dunajov"]
[TimeControl "40/5400+30:1800+30"]

1. e4 {[%emt 0:00:00]} c5 {[%emt 0:00:00]} 2. Nf3 {[%emt 0:00:12]} e6 {[%emt 0:00:24]} 3. d4 {[%emt 0:00:06]} cxd4 {[%emt 0:00:07]} 4. Nxd4 {[%emt 0:00:07]} Nf6 5. Nc3 {[%emt 0:00:16]} d6 {[%emt 0:01:11]} 6. Be2 {[%emt 0:01:13]} Be7 {[%emt 0:00:44]} 7. O-O {[%emt 0:00:11]} Nc6 {[%emt 0:01:31]} 8. Be3 {[%emt 0:01:17]} a6 {[%emt 0:00:21]} 9. f4 {[%emt 0:00:46]} Qc7 {[%emt 0:00:26]} 10. a4 {[%emt 0:00:47]} O-O {[%emt 0:00:33]} 11. Kh1 {[%emt 0:00:13]} Re8 {[%emt 0:01:25]} 12. Bf3 {[%emt 0:00:13]} Rb8 {[%emt 0:01:07]} 13. Qd2 {[%emt 0:01:40]} Bf8 {[%emt 0:02:02]} 14. Rad1 {[%emt 0:02:24]} e5 {[%emt 0:01:41]} 15. Nxc6 {[%emt 0:13:38]} bxc6 {[%emt 0:03:45]} 16. b3 {[%emt 0:00:37]} a5 {[%emt 0:03:26]} 17. f5 {[%emt 0:06:33]} Ba6 {[%emt 0:04:54]} 18. Rg1 {[%emt 0:06:09]} d5 {[%emt 0:07:24]} 19. Bg5 {[%emt 0:23:21]} Bb4 {[%emt 0:27:44]} 20. Bxf6 {[%emt 0:06:50]} gxf6 {[%emt 0:00:11]} 21. exd5 {[%emt 0:18:40]} Rbd8 {[%emt 0:11:22]} 22. Qe3 {[%emt 0:02:36]} e4 {[%emt 0:03:50]} 23. Nxe4 {[%emt 0:00:45]} Kg7 {[%emt 0:05:19]} 24. dxc6 {[%emt 0:00:30]} Rxd1 {[%emt 0:01:29]} 25. Rxd1 Qxc6 {[%emt 0:00:13]} 26. Qd4 {[%emt 0:06:38]} Re5 {[%emt 0:03:06]} 27. Ng3 {[%emt 0:01:17]} Qe8 {[%emt 0:02:28]} 28. Nh5+ {[%emt 0:02:03]} Kf8 {[%emt 0:00:10]} 29. Nxf6 {[%emt 0:01:24]} Re1+ {[%emt 0:05:26]} 30. Rxe1 {[%emt 0:00:01]} Qxe1+ {[%emt 0:00:09]} 31. Qg1 {[%emt 0:00:01]} Qc3 {[%emt 0:00:11]} 32. Nxh7+ {[%emt 0:03:50]} Kg8 {[%emt 0:00:25]} 33. Ng5 {[%emt 0:00:41]} Qxc2 {[%emt 0:00:25]} 34. Bd5 {[%emt 0:00:54]} Qxf5 {[%emt 0:01:13]} 35. Bxf7+ {[%emt 0:00:21]} Kf8 {[%emt 0:00:14]} 36. h4 {[%emt 0:00:49]} Qg4 {[%emt 0:02:15]} 37. Qf2 {[%emt 0:00:47]} Qd1+ {[%emt 0:04:17]} 38. Kh2 {[%emt 0:00:01]} Qd6+ {[%emt 0:00:35]} 39. Qg3 {[%emt 0:01:05]} Qe7 {[%emt 0:01:21]} 40. Qf3 {[%emt 0:00:00]} Qc7+ {[%emt 0:00:00]} 41. Kh3 {[%emt 0:02:36]} Ke7 {[%emt 0:08:52]} 42. Qe4+ {[%emt 0:00:58]} 1-0